bitfinex/quotes_SOLUSD_20260108
["timestamp","ask_amount","ask_price","bid_price","bid_amount"]
[1767902913031,0.7072607,136.71,136.66,0.65375353]
[1767902913225,0.7072607,136.71,136.68,5.38881518]
[1767902913540,7.31444046,136.72,136.68,0.65375353]
[1767902913742,6.09607588,136.73,136.68,7.97001388]
[1767902914044,8.02105001,136.73,136.68,13.35882906]
[1767902914334,13.40986519,136.73,136.68,13.35882906]
[1767902914537,13.40986519,136.73,136.68,6.04256871]
[1767902914739,7.31378931,136.73,136.69,0.65375353]
[1767902914943,13.36,136.74,136.7,6.04256871]
[1767902915240,13.36,136.74,136.7,0.65375353]
[1767902915539,6.09607588,136.75,136.7,0.65375353]
[1767902916038,7.31326509,136.74,136.7,0.65375353]
[1767902916244,7.31275463,136.75,136.71,0.65375353]
[1767902917142,12.70156981,136.75,136.71,0.65375353]
[1767902918641,30.98310545,136.75,136.71,0.65375353]
[1767902919031,5.38881518,136.74,136.71,0.65375353]
[1767902919336,25.59429027,136.75,136.71,0.65375353]
[1767902919536,30.98310545,136.75,136.71,0.65375353]
[1767902920525,27.78757138,136.75,136.71,0.65375353]
[1767902920747,28.48977491,136.75,136.71,0.65375353]
[1767902920949,2.19328111,136.74,136.69,0.65375353]
[1767902921126,26.2964938,136.75,136.66,0.65375353]
[1767902921127,2.19328111,136.7,136.66,0.65375353]
[1767902921334,2.19328111,136.71,136.67,0.65375353]
[1767902922122,13.56154326,136.72,136.63,0.65375353]
[1767902922123,2.89052811,136.69,136.63,0.65375353]
[1767902922436,2.19328111,136.68,136.64,0.65375353]
[1767902922940,9.51016854,136.68,136.64,0.65375353]
[1767902924148,7.52834426,136.68,136.64,0.65375353]
[1767902924338,9.72162537,136.68,136.64,0.65375353]
[1767902924842,7.31688743,136.68,136.64,0.65375353]
[1767902925153,9.51016854,136.68,136.64,0.65375353]
[1767902925656,2.19328111,136.67,136.64,0.65375353]
[1767902925944,27.80106698,136.68,136.64,0.65375353]
[1767902926331,2.19328111,136.67,136.64,0.65375353]
[1767902926754,7.31743011,136.66,136.64,0.65375353]
[1767902926924,2.19328111,136.67,136.64,0.65375353]
[1767902926925,7.31691885,136.67,136.64,0.65375353]
[1767902927651,9.51019996,136.67,136.64,0.65375353]
[1767902928048,7.31691885,136.67,136.64,0.65375353]
[1767902928629,7.31643106,136.68,136.64,0.65375353]
[1767902930738,10.21150789,136.69,136.65,0.65375353]
[1767902930949,9.50930436,136.69,136.65,0.65375353]
[1767902931250,10.21150789,136.69,136.65,0.65375353]
[1767902931629,8.01822678,136.69,136.65,0.65375353]
[1767902931829,0.20654986,136.68,136.64,0.65375353]
[1767902932367,2.89052811,136.67,136.62,2.84703464]
[1767902932526,0.697247,136.67,136.62,0.65375353]
[1767902932732,0.7072607,136.68,136.63,0.65375353]
[1767902932928,2.90054181,136.68,136.63,0.65375353]
[1767902933335,7.3168947,136.67,136.63,0.65375353]
[1767902934236,9.50983289,136.68,136.64,0.65375353]
[1767902936058,9.5093432,136.69,136.65,0.65375353]
[1767902936463,2.19328111,136.68,136.65,0.65375353]
[1767902937534,8.01826562,136.69,136.65,0.65375353]
[1767902937535,7.31606209,136.69,136.65,0.65375353]
[1767902937736,9.5093432,136.69,136.65,0.65375353]
[1767902938061,8.01826562,136.69,136.65,0.65375353]
[1767902938266,2.19328111,136.68,136.65,0.65375353]
[1767902940054,9.50988004,136.68,136.65,0.65375353]
[1767902940358,2.19328111,136.68,136.65,0.65375353]
[1767902940551,8.01818445,136.69,136.65,0.65375353]
[1767902940747,3.43017627,136.68,136.65,0.65375353]
[1767902940949,7.31598092,136.69,136.66,0.65375353]
[1767902941444,7.31548604,136.7,136.66,0.65375353]
[1767902941645,24.10538992,136.71,136.67,0.65375353]
[1767902941846,3.43017627,136.7,136.67,0.65375353]
[1767902942046,0.20654986,136.69,136.65,0.65375353]
[1767902942233,7.31635937,136.68,136.65,0.65375353]
[1767902942433,7.28635936,136.68,136.65,0.65375353]
[1767902943643,3.43017627,136.7,136.66,0.70315338]
[1767902943845,0.21138987,136.71,136.66,0.70315338]
[1767902944153,10.74653564,136.68,136.64,0.70315338]
[1767902944462,7.31635937,136.68,136.64,0.70315338]
[1767902945064,7.31635937,136.68,136.65,0.70315338]
[1767902948636,7.31587711,136.69,136.66,0.70315338]
[1767902948840,20.67547569,136.7,136.67,0.70315338]
[1767902949060,24.10565196,136.7,136.67,0.70315338]
[1767902949368,3.64637679,136.68,136.63,0.70315338]
[1767902949570,7.31547569,136.7,136.61,8.0231426]
[1767902949571,0.22091545,136.66,136.61,8.0231426]
[1767902949746,0.22091545,136.66,136.62,0.70315338]
[1767902949747,3.65109172,136.66,136.62,0.70315338]
[1767902950063,0.68302506,136.65,136.61,3.43017627]
[1767902950361,0.69731463,136.67,136.62,0.70315338]
[1767902950564,3.64156614,136.66,136.62,0.70315338]
[1767902950759,7.3179656,136.65,136.62,0.70315338]
[1767902952778,10.74760638,136.66,136.62,0.70315338]
[1767902952987,7.31743011,136.66,136.62,0.70315338]
[1767902953351,10.74760638,136.66,136.62,0.70315338]
[1767902953646,0.20688931,136.65,136.6,11.43940416]
[1767902953868,10.74760638,136.66,136.61,0.68882464]
[1767902954045,7.31743011,136.66,136.62,0.68882464]
[1767902954460,10.74760638,136.66,136.62,0.68882464]
[1767902955569,8.02397668,136.67,136.63,0.68882464]
[1767902955760,8.02397668,136.67,136.64,0.68882464]
[1767902955761,7.31706581,136.67,136.64,0.68882464]
[1767902956068,7.31706581,136.67,136.63,3.43017627]
[1767902956069,3.43017627,136.66,136.62,8.00819475]
[1767902956470,3.43017627,136.65,136.62,0.68882464]
[1767902957470,3.43017627,136.64,136.62,0.68882464]
[1767902958552,10.74816281,136.65,136.62,0.68882464]
[1767902960473,3.6419658,136.64,136.6,0.68882464]
[1767902960873,0.69205972,136.63,136.59,10.75113936]
[1767902961056,7.51987614,136.65,136.6,0.68882464]
[1767902961257,3.43017627,136.64,136.6,0.68882464]
[1767902961658,4.13203692,136.64,136.6,0.68882464]
[1767902961859,11.45068042,136.64,136.6,0.68882464]
[1767902962385,4.12708721,136.62,136.58,8.11023732]
[1767902962569,3.43017627,136.62,136.59,0.68882464]
[1767902962966,25.61489642,136.64,136.59,0.68882464]
[1767902963169,3.43017627,136.63,136.59,0.68882464]
[1767902963477,3.43017627,136.63,136.6,0.68882464]
[1767902964365,10.74881977,136.64,136.6,8.00945521]
[1767902964567,4.13708714,136.63,136.58,4.21900091]
[1767902964887,4.13708714,136.63,136.59,0.68882464]
[1767902965560,3.43017627,136.62,136.59,0.68882464]
[1767902965960,8.02606806,136.63,136.59,0.68882464]
[1767902966162,3.43017627,136.64,136.6,0.68882464]
[1767902966361,3.43017627,136.63,136.6,0.68882464]
[1767902967184,10.7488117,136.64,136.6,0.68882464]
[1767902967479,3.43017627,136.64,136.6,0.68882464]
[1767902967671,3.60236585,136.64,136.6,0.68882464]
[1767902967875,0.17218958,136.64,136.6,0.68882464]
[1767902968060,3.43017627,136.62,136.6,0.68882464]
[1767902968379,10.74982702,136.62,136.6,0.68882464]
[1767902968583,7.31965075,136.62,136.6,0.68882464]
[1767902968755,10.74982702,136.62,136.6,0.68882464]
[1767902968959,0.17218958,136.64,136.6,0.68882464]
[1767902968960,3.43017627,136.64,136.6,0.68882464]
[1767902969384,10.74883002,136.64,136.6,0.68882464]
[1767902970398,4.12649912,136.61,136.58,0.1]
[1767902970564,29.04508294,136.64,136.58,0.1]
[1767902970565,3.43017627,136.59,136.58,0.1]
[1767902970882,3.43017627,136.59,136.55,8.0119254]
[1767902971074,0.70156365,136.6,136.55,8.0119254]
[1767902971075,3.43017627,136.58,136.55,8.0119254]
[1767902971281,3.43017627,136.59,136.56,0.68882464]
[1767902972187,3.43017627,136.61,136.57,0.68882464]
[1767902972573,3.43017627,136.61,136.57,0.18882464]
[1767902973189,3.43017627,136.62,136.57,3.43017627]
[1767902974267,14.02434203,136.64,136.58,3.43017627]
[1767902974467,0.66434203,136.66,136.58,0.28432314]
[1767902974790,4.0945183,136.63,136.59,0.65447878]
[1767902974999,3.43017627,136.63,136.59,0.65447878]
[1767902975591,3.43017627,136.63,136.6,0.65447878]
[1767902975789,0.66434203,136.64,136.6,0.65447878]
[1767902976091,7.98264078,136.65,136.6,0.65447878]
[1767902976287,4.0945183,136.65,136.6,0.65447878]
[1767902976970,0.66434203,136.65,136.6,0.65447878]
[1767902977290,4.0945183,136.65,136.6,0.65447878]
[1767902977487,21.34140006,136.67,136.61,0.65447878]
[1767902977693,3.43017627,136.66,136.61,0.65447878]
[1767902977895,4.0945183,136.66,136.62,7.31957253]
[1767902978087,4.0945183,136.66,136.62,7.97405131]
[1767902978278,3.43017627,136.65,136.62,7.97405131]
[1767902978787,4.0945183,136.65,136.62,7.31957253]
[1767902978976,3.43017627,136.65,136.62,7.97405131]
[1767902979180,7.98182257,136.66,136.62,7.97405131]
[1767902979378,3.43017627,136.65,136.62,7.97405131]
[1767902980801,13.36,136.67,136.62,7.97405131]
[1767902980802,4.0945183,136.67,136.63,0.65447878]
[1767902981889,4.0945183,136.66,136.62,7.97405131]
[1767902982600,0.66434203,136.66,136.62,7.97405131]
[1767902982974,3.43017627,136.66,136.63,0.65447878]
[1767902983381,4.0945183,136.67,136.63,0.65447878]
[1767902983587,3.43017627,136.67,136.63,0.65447878]
[1767902985002,4.0945183,136.68,136.64,7.97297995]
[1767902986298,0.66434203,136.67,136.64,7.31850117]
[1767902986506,4.0945183,136.68,136.65,0.65447878]
[1767902986882,16.79017627,136.69,136.65,0.65447878]
[1767902987077,13.36,136.69,136.66,0.65447878]
[1767902987293,7.97969656,136.7,136.66,0.65447878]
[1767902987294,0.66434203,136.7,136.66,0.65447878]
[1767902987512,11.40988928,136.7,136.66,0.65447878]
[1767902987884,0.66434203,136.71,136.66,0.65447878]
[1767902988088,3.43017627,136.71,136.66,0.65447878]
[1767902988299,4.0945183,136.72,136.67,0.65447878]
[1767902988606,3.43017627,136.73,136.68,0.65447878]
[1767902988800,3.43017627,136.73,136.69,0.65447878]
[1767902988984,0.66434203,136.74,136.71,0.65447878]
[1767902989185,10.74292873,136.75,136.71,0.65447878]
[1767902989385,4.0945183,136.74,136.69,0.65447878]
[1767902989700,0.66434203,136.74,136.7,0.65447878]
[1767902990110,0.66434203,136.74,136.7,7.96965719]
[1767902990276,4.0945183,136.74,136.7,7.96965719]
[1767902990902,4.0945183,136.74,136.71,0.65447878]
[1767902991607,3.43017627,136.74,136.71,0.65447878]
[1767902992212,7.97709449,136.75,136.71,0.65447878]
[1767902992448,0.66434203,136.72,136.68,0.28432314]
[1767902992718,4.0945183,136.72,136.68,7.9706811]
[1767902992885,0.66434203,136.72,136.68,7.9706811]
[1767902993081,4.0945183,136.72,136.68,7.9706811]
[1767902994717,0.66434203,136.72,136.68,7.9706811]
[1767902994910,11.40848457,136.73,136.69,0.65447878]
[1767902995634,3.43017627,136.71,136.68,0.65447878]
[1767902996128,3.43017627,136.7,136.67,0.65447878]
[1767902996924,4.0945183,136.71,136.67,0.65447878]
[1767902997224,11.40963769,136.71,136.67,0.65447878]
[1767902998025,7.97946142,136.71,136.67,0.65447878]
[1767902998229,11.40963769,136.71,136.67,0.65447878]
[1767903000238,18.28334627,136.74,136.68,0.65447878]
[1767903000404,18.28334627,136.74,136.69,0.65447878]
[1767903000405,24.76786434,136.74,136.69,0.65447878]
[1767903000705,0.66434203,136.73,136.69,0.65447878]
[1767903000905,7.97768807,136.74,136.7,0.65447878]
[1767903001332,11.40786434,136.74,136.7,0.65447878]
[1767903002027,7.97768807,136.74,136.71,0.65447878]
[1767903002238,11.40731668,136.75,136.71,0.65447878]
[1767903002726,0.66434203,136.75,136.71,0.65447878]
[1767903002918,10.22487061,136.76,136.72,0.69616532]
[1767903003112,7.31166124,136.77,136.72,2.88927111]
[1767903003315,0.71932264,136.78,136.74,8.00931436]
[1767903003316,2.91242843,136.78,136.74,8.00931436]
[1767903003718,10.22343957,136.78,136.74,0.69616532]
[1767903004031,16.40800771,136.8,136.76,0.69616532]
[1767903004204,3.04800771,136.8,136.76,0.69616532]
[1767903004405,0.2,136.8,136.77,2.88927111]
[1767903004632,0.2,136.8,136.78,0.63616532]
[1767903004950,0.2,136.8,136.78,0.54859191]
[1767903006144,0.2,136.82,136.79,2.19310579]
[1767903006430,0.7039575,136.85,136.79,0.28432314]
[1767903006727,0.7039575,136.87,136.83,2.88171067]
[1767903006928,0.2,136.88,136.85,0.68860488]
[1767903007105,1e-08,136.88,136.85,0.68860488]
[1767903007533,1e-08,136.88,136.86,7.99534169]
[1767903007732,1e-08,136.88,136.86,0.68860488]
[1767903008035,2.8970633,136.88,136.84,7.99590408]
[1767903008226,0.7039575,136.87,136.82,0.97292802]
[1767903008533,2.89706329,136.87,136.83,0.68860488]
[1767903008705,0.7039575,136.87,136.83,0.68860488]
[1767903008910,2.89706329,136.87,136.83,0.68860488]
[1767903009123,2.89706329,136.87,136.83,7.99650666]
[1767903010018,0.7039575,136.86,136.82,7.99729129]
[1767903010340,0.7039575,136.86,136.83,7.30832371]
[1767903010522,2.89706329,136.86,136.83,7.30832371]
[1767903010718,1e-08,136.88,136.84,0.68860488]
[1767903010943,1e-08,136.88,136.85,0.68860488]
[1767903011748,1e-08,136.88,136.86,7.30673681]
[1767903012042,1e-08,136.88,136.86,0.68860488]
[1767903013134,1e-08,136.88,136.85,7.99566629]
[1767903013935,1e-08,136.88,136.86,0.68860488]
[1767903014119,1e-08,136.88,136.86,2.88171067]
[1767903014316,1e-08,136.88,136.84,7.9962133]
[1767903014317,2.1931058,136.88,136.84,7.9962133]
[1767903015445,2.1931058,136.88,136.85,7.30715197]
[1767903015817,0.7039575,136.93,136.87,0.68860488]
[1767903016024,0.7039575,136.91,136.87,0.68860488]
[1767903016247,2.19310579,136.9,136.87,0.68860488]
[1767903017352,2.19310579,136.9,136.85,9.50025776]
[1767903017353,0.7039575,136.88,136.85,7.30715197]
[1767903017733,2.89706329,136.87,136.84,7.30768163]
[1767903017940,2.89706329,136.85,136.81,0.68860488]
[1767903018648,2.89706329,136.82,136.79,7.3101626]
[1767903019228,0.7039575,136.82,136.79,7.3101626]
[1767903019429,0.7039575,136.83,136.79,2.19310579]
[1767903019637,2.89706329,136.84,136.79,2.88171067]
[1767903019837,2.19310579,136.87,136.82,0.68860488]
[1767903020038,0.7039575,136.88,136.82,0.68860488]
[1767903020330,2.19310579,136.89,136.84,2.88171067]
[1767903020530,0.7039575,136.9,136.84,2.88171067]
[1767903020738,2.19310579,136.89,136.84,2.88171067]
[1767903021346,2.89706329,136.89,136.84,0.68860488]
[1767903021547,2.89706329,136.89,136.83,7.30821752]
[1767903021548,2.89706329,136.87,136.83,7.30821752]
[1767903021936,2.19310579,136.86,136.82,7.99737823]
[1767903022141,0.7039575,136.85,136.82,7.30877335]
[1767903022336,0.7039575,136.85,136.81,7.3091874]
[1767903022638,0.7039575,136.83,136.79,7.30997015]
[1767903022949,2.89706329,136.83,136.79,7.30997015]
[1767903023151,0.7039575,136.83,136.79,7.30997015]
[1767903023346,0.7039575,136.83,136.79,9.50307594]
[1767903023553,0.7039575,136.83,136.79,27.77926571]
[1767903024060,0.7039575,136.83,136.79,25.58615992]
[1767903024755,0.7039575,136.85,136.79,28.46787059]
[1767903024959,0.7039575,136.84,136.79,28.46787059]
[1767903026260,2.89706329,136.84,136.79,28.46787059]
[1767903026460,2.19310579,136.85,136.8,0.97292802]
[1767903026661,2.19310579,136.86,136.8,3.16603381]
[1767903026860,2.19310579,136.86,136.81,0.68860488]
[1767903027061,20.64578249,136.88,136.82,0.68860488]
[1767903027254,2.19310579,136.86,136.82,0.68860488]
[1767903027479,2.19310579,136.86,136.83,7.30833881]
[1767903027759,2.19310579,136.86,136.83,7.99694369]
[1767903027953,2.19310579,136.87,136.84,0.68860488]
[1767903028973,0.7039575,136.89,136.84,0.68860488]
[1767903029153,2.19310579,136.87,136.84,0.68860488]
[1767903029338,2.19310579,136.87,136.84,7.99596153]
[1767903031759,2.19310579,136.88,136.84,7.99596153]
[1767903031954,2.19310579,136.88,136.84,26.26547336]
[1767903032467,5.37483684,136.88,136.84,26.26547336]
[1767903033966,0.68074049,136.91,136.86,0.68482549]
[1767903034171,0.68074049,136.91,136.87,0.82698706]
[1767903034370,6.05557733,136.93,136.88,0.68482549]
[1767903034573,6.05557733,136.93,136.88,0.76698706]
[1767903034992,0.2,136.94,136.9,0.82698706]
[1767903035268,5.57483684,136.94,136.91,0.62482549]
[1767903036168,0.2,136.94,136.91,7.92842939]
[1767903036362,0.2,136.94,136.91,7.3036039]
[1767903036561,0.2,136.94,136.91,6.94150942]
[1767903036952,0.2,136.96,136.92,5.65915998]
[1767903037160,0.2,136.96,136.92,0.28432314]
[1767903037952,0.2,136.96,136.93,7.30300153]
[1767903038575,1e-08,136.96,136.94,0.28432314]
[1767903038776,5.37483684,136.99,136.94,6.34398547]
[1767903038959,5.37483684,136.99,136.95,0.68482549]
[1767903040078,5.37483684,136.99,136.96,7.30140186]
[1767903040261,5.37483684,136.99,136.95,7.98656252]
[1767903041648,5.37483684,136.99,136.96,7.98571071]
[1767903041975,5.37483684,137.0,136.96,7.98571071]
[1767903042168,5.37483684,136.99,136.96,7.92571071]
[1767903042370,5.37483684,136.99,136.96,7.86571071]
[1767903042684,5.37483684,136.99,136.96,0.56482549]
[1767903043281,5.37483684,136.99,136.96,7.8661568]
[1767903043955,5.37483684,137.0,136.96,7.8661568]
[1767903044154,5.37483684,136.99,136.96,7.8661568]
[1767903044352,5.37483684,137.0,136.96,7.8661568]
[1767903044573,7.42055873,137.01,136.96,7.8661568]
[1767903044781,5.37483684,136.99,136.96,7.8661568]
[1767903044980,5.37483684,136.99,136.94,7.30233993]
[1767903044981,5.37483684,136.97,136.94,7.30233993]
[1767903045155,5.37483684,136.97,136.94,7.98716542]
[1767903045356,13.46162068,136.99,136.94,7.98716542]
[1767903045555,5.47406078,136.96,136.91,0.68482549]
[1767903045755,5.47406078,136.96,136.92,7.30322032]
[1767903045971,5.37483684,136.95,136.92,7.30322032]
[1767903046171,5.37483684,136.95,136.91,7.98876547]
[1767903047579,5.37483684,136.95,136.92,0.68482549]
[1767903047898,5.37483684,136.96,136.92,0.68482549]
[1767903048483,20.64106802,136.97,136.92,7.98800282]
[1767903048780,5.37483684,136.96,136.92,7.98800282]
[1767903049875,5.37483684,136.95,136.92,7.98800282]
[1767903050077,5.37483684,137.0,136.95,0.68482549]
[1767903050387,5.37483684,137.01,136.96,5.37483684]
[1767903050566,0.18162068,137.01,136.96,5.37483684]
[1767903050761,5.55645752,137.01,136.93,7.58708199]
[1767903050979,5.55645752,137.01,136.95,5.37483684]
[1767903051181,12.85519483,137.01,136.95,12.67653681]
[1767903051387,5.37483684,137.0,136.95,12.67653681]
[1767903051585,7.48035799,137.01,136.95,12.67653681]
[1767903051783,5.37483684,137.0,136.95,12.67653681]
[1767903052091,5.37483684,136.97,136.93,7.30266018]
[1767903052388,5.37483684,136.97,136.93,7.98748567]
[1767903052588,2.18607954,136.97,136.93,7.98748567]
[1767903052976,2.18607954,136.94,136.91,0.68482549]
[1767903053286,2.18607954,136.94,136.91,7.98844169]
[1767903053485,7.40239113,136.96,136.91,7.98844169]
[1767903053873,2.18607954,136.94,136.91,7.98844169]
[1767903054287,2.18607954,136.92,136.89,7.98956875]
[1767903054594,0.10217541,136.91,136.88,0.28432314]
[1767903055093,5.37201154,136.92,136.88,0.96914863]
[1767903055290,5.37201154,136.92,136.89,7.989961]
[1767903055819,5.37201154,136.9,136.86,0.68482549]
[1767903056098,5.37201154,136.89,136.86,7.99122658]
[1767903056473,5.37201154,136.89,136.87,7.3059712]
[1767903056672,13.52162068,136.93,136.88,7.99049468]
[1767903056891,5.37201154,136.91,136.88,7.99049468]
[1767903057790,5.37201154,136.91,136.88,7.93049468]
[1767903058577,13.52162068,136.93,136.88,7.93049468]
[1767903058783,5.37201154,136.92,136.88,26.19466767]
[1767903059393,5.37201154,136.94,136.9,0.68482549]
[1767903059595,5.37201154,136.93,136.9,0.62482549]
[1767903059782,5.37201154,136.93,136.9,7.92896218]
[1767903059975,13.34,136.96,136.9,7.30413669]
[1767903060169,5.37201154,136.95,136.9,7.30413669]
[1767903060368,5.37201154,136.93,136.89,0.28432314]
[1767903060676,5.37201154,136.93,136.9,7.30457499]
[1767903060877,5.37201154,136.93,136.9,7.24457499]
[1767903061986,7.60155776,136.95,136.91,0.68482549]
[1767903062298,5.37201154,136.93,136.91,0.62482549]
[1767903062685,5.37201154,136.92,136.88,0.28432314]
[1767903062987,5.47101154,136.89,136.81,5.37201154]
[1767903063191,5.37201154,136.88,136.82,12.68088451]
[1767903063492,5.37201154,136.87,136.82,12.68088451]
[1767903063694,5.37201154,136.87,136.82,30.9524733]
[1767903063903,0.21945911,136.93,136.85,5.37201154]
[1767903064079,5.37201154,136.92,136.88,0.68544552]
[1767903064572,8.72887282,136.92,136.88,0.68544552]
[1767903064791,7.52253148,136.93,136.88,0.68544552]
[1767903065099,8.72887282,136.92,136.88,0.68544552]
[1767903065694,8.72887282,136.92,136.88,7.99108867]
[1767903065914,8.72887282,136.92,136.89,0.68442173]
[1767903068003,8.72887282,136.92,136.89,7.98947343]
[1767903068704,8.72887282,136.91,136.87,0.68442173]
[1767903068902,0.21707389,136.92,136.87,7.99033346]
[1767903069083,8.72887282,136.9,136.87,7.99033346]
[1767903071192,8.72887282,136.89,136.86,7.30656371]
[1767903071395,8.72887282,136.88,136.84,0.96874487]
[1767903071702,8.72887282,136.88,136.85,0.68442173]
[1767903071906,0.21591677,136.9,136.85,0.68442173]
[1767903072110,8.72887282,136.89,136.86,7.30673681]
[1767903072290,8.72887282,136.89,136.86,7.99115854]
[1767903072511,8.72887282,136.9,136.87,0.68442173]
[1767903073208,8.72887282,136.91,136.87,0.68442173]
[1767903073414,20.74235242,136.93,136.87,0.68442173]
[1767903073608,8.72887282,136.9,136.87,0.68442173]
[1767903074320,8.72887282,136.9,136.87,7.99015843]
[1767903075617,8.94478959,136.88,136.85,7.30695728]
[1767903075785,8.72887282,136.86,136.85,7.30695728]
[1767903077011,8.72887282,136.88,136.85,7.30695728]
[1767903077200,22.06887282,136.89,136.85,7.30695728]
[1767903079104,22.06887282,136.89,136.85,25.57513411]
[1767903081001,22.16787282,136.89,136.85,25.57513411]
[1767903081310,8.94594671,136.86,136.83,7.30825577]
[1767903081499,8.83023418,136.85,136.82,7.30866984]
[1767903082013,8.94478959,136.84,136.81,7.30922835]
[1767903082216,8.72887282,136.84,136.82,7.30881465]
[1767903082527,8.72887282,136.85,136.81,7.30917691]
[1767903083104,8.72887282,136.83,136.78,0.68442173]
[1767903083412,8.72887282,136.83,136.79,7.30995334]
[1767903083596,8.72887282,136.83,136.8,7.30974957]
[1767903083998,22.06887282,136.84,136.8,7.30974957]
[1767903084720,13.34,136.84,136.8,7.30974957]
[1767903085013,8.72887282,136.83,136.8,7.30974957]
[1767903085917,13.34,136.84,136.8,16.03862239]
[1767903086104,13.34,136.84,136.8,7.30974957]
[1767903086303,13.34,136.84,136.8,16.03862239]
[1767903086813,13.34,136.84,136.8,7.30974957]
[1767903087802,13.34,136.84,136.8,16.72304412]
[1767903088014,13.34,136.85,136.81,9.41329455]
[1767903088715,13.34,136.85,136.81,0.68442173]
[1767903089020,13.34,136.85,136.81,9.41329455]
[1767903089607,13.34,136.85,136.81,7.99331872]
[1767903089917,13.34,136.85,136.81,16.72219154]
[1767903091817,20.6474673,136.85,136.81,9.41329455]
[1767903092137,8.72887282,136.84,136.81,7.30933188]
[1767903092426,29.37634012,136.85,136.81,7.30933188]
[1767903092917,22.06887282,136.85,136.81,8.01344461]
[1767903093310,16.03624799,136.85,136.81,8.01344461]
[1767903093512,29.37624799,136.85,136.81,8.01344461]
[1767903095202,8.72887282,136.84,136.79,0.70411273]
[1767903095404,13.34,136.83,136.79,0.70411273]
[1767903095905,13.34,136.83,136.79,9.43298555]
[1767903096213,7.30737517,136.85,136.79,9.43298555]
[1767903096518,10.73018078,136.85,136.79,4.12691834]
[1767903096704,13.34,136.84,136.79,0.70411273]
[1767903096906,13.34,136.84,136.79,4.12691834]
[1767903097100,13.34,136.84,136.8,7.30986709]
[1767903098329,20.64805499,136.84,136.78,8.01488193]
[1767903098505,20.64805499,136.84,136.77,3.52280561]
[1767903098506,3.42280561,136.82,136.77,3.52280561]
[1767903098824,13.34,136.81,136.78,11.43780311]
[1767903099315,13.34,136.81,136.78,8.0149975]
[1767903099514,13.34,136.81,136.77,8.11545413]
[1767903099718,13.34,136.81,136.77,11.53825974]
[1767903099924,13.34,136.81,136.78,3.42280561]
[1767903100827,13.34,136.81,136.78,4.12691834]
[1767903101012,13.34,136.81,136.78,11.43758168]
[1767903101830,13.34,136.82,136.78,11.43758168]
[1767903102327,13.34,136.82,136.78,8.01477607]
[1767903102564,16.76280561,136.82,136.78,0.70411273]
[1767903102829,16.76280561,136.82,136.77,8.11542473]
[1767903103252,3.42280561,136.81,136.77,8.11542473]
[1767903105131,24.07209757,136.82,136.77,8.11542473]
[1767903105311,13.34,136.82,136.78,4.12691834]
[1767903105512,13.34,136.82,136.79,0.70411273]
[1767903105834,20.64837918,136.83,136.79,0.70411273]
[1767903107311,24.07118479,136.83,136.79,0.70411273]
[1767903107516,3.42280561,136.8,136.77,0.80411273]
[1767903108133,10.73284665,136.8,136.77,0.80411273]
[1767903109140,24.0724474,136.81,136.77,0.80411273]
[1767903109444,20.64964179,136.81,136.77,0.80411273]
[1767903109827,7.30907231,136.82,136.79,0.70411273]
[1767903110027,18.27084703,136.83,136.79,0.70411273]
[1767903110028,13.34,136.81,136.79,0.70411273]
[1767903110356,16.76280561,136.83,136.79,0.70411273]
[1767903110636,22.08189542,136.83,136.79,0.70411273]
[1767903112949,29.39028577,136.83,136.79,0.70411273]
[1767903113249,29.39028577,136.83,136.78,16.05248176]
[1767903113548,29.39028577,136.83,136.77,0.1]
[1767903113549,8.74189542,136.82,136.77,0.80411273]
[1767903113845,22.08189542,136.82,136.77,8.11525666]
[1767903114048,8.74189542,136.81,136.77,0.80411273]
[1767903114246,8.74189542,136.81,136.77,8.11518532]
[1767903114446,8.74189542,136.79,136.77,0.1]
[1767903114740,8.74189542,136.78,136.77,0.1]
[1767903115352,13.34,136.79,136.77,0.1]
[1767903115737,22.08189542,136.79,136.77,0.1]
[1767903116128,13.34,136.79,136.77,0.1]
[1767903116329,22.08189542,136.79,136.77,0.1]
[1767903117231,13.34,136.79,136.77,0.1]
[1767903117576,22.08189542,136.79,136.77,0.1]
[1767903118459,13.34,136.79,136.77,0.1]
[1767903118758,13.28000002,136.79,136.77,0.1]
[1767903119858,22.02189544,136.79,136.77,0.1]
[1767903120654,13.28000002,136.79,136.77,0.1]
[1767903121731,13.34,136.79,136.77,0.1]
[1767903121932,16.05103915,136.82,136.77,0.1]
[1767903122145,13.34,136.81,136.77,0.1]
[1767903123244,13.34,136.81,136.77,16.15344034]
[1767903123645,13.34,136.81,136.77,7.41154492]
[1767903123843,13.34,136.81,136.78,0.65721273]
[1767903125157,13.34,136.81,136.78,7.96820843]
[1767903130275,13.34,136.81,136.79,0.65721273]
[1767903130745,13.34,136.81,136.79,0.59721273]
[1767903130941,0.06,136.85,136.79,9.5015084]
[1767903131146,2.19120965,136.86,136.81,2.19120965]
[1767903131376,13.34,136.85,136.81,2.19120965]
[1767903131678,20.64682394,136.86,136.82,2.19120965]
[1767903132168,13.34,136.86,136.82,2.19120965]